fUSD/lending_fUSD_20250724
["ID","MTS","AMOUNT","RATE_DAILY","PERIOD"]
[374646596,1753397447887,-2429.69,0.00032395,10]
[374646598,1753397447896,-491.56,0.00032395,10]
[374646600,1753397447905,-400.0,0.00032395,10]
[374646602,1753397447914,-991.92,0.00032395,10]
[374646604,1753397447925,-400.0,0.00032395,10]
[374646606,1753397447935,-3285.32,0.00032395,10]
[374646608,1753397447944,-400.0,0.00032395,10]
[374646610,1753397447955,-1329.27,0.00032395,10]
[374646612,1753397447964,-400.0,0.00032395,10]
[374646614,1753397447974,-931.57,0.00032395,10]
[374646616,1753397447984,-400.0,0.00032395,10]
[374646618,1753397447993,-400.0,0.00032396,10]
[374646620,1753397448003,-400.0,0.00032396,10]
[374646622,1753397448012,-400.0,0.00032396,10]
[374646624,1753397448022,-400.0,0.00032396,10]
[374646626,1753397448031,-252.56677655,0.00032396,10]
[374646628,1753397448040,-400.0,0.00032396,10]
[374646630,1753397448049,-400.0,0.00032396,10]
[374646632,1753397448058,-400.0,0.00032396,10]
[374646634,1753397448068,-400.0,0.00032396,10]
[374646636,1753397448077,-400.0,0.00032396,10]
[374646638,1753397448087,-400.0,0.00032396,10]
[374646640,1753397448097,-400.0,0.00032396,10]
[374646642,1753397448106,-400.0,0.00032396,10]
[374646644,1753397448116,-400.0,0.00032396,10]
[374646646,1753397448125,-400.0,0.00032396,10]
[374646648,1753397448135,-400.0,0.00032396,10]
[374646650,1753397448144,-400.0,0.00032396,10]
[374646652,1753397448153,-400.0,0.00032396,10]
[374646654,1753397448162,-400.0,0.00032396,10]
[374646656,1753397448171,-400.0,0.00032396,10]
[374646657,1753397448180,-400.0,0.00032396,10]
[374646658,1753397448190,-753.54,0.00032396,10]
[374646659,1753397448199,-400.0,0.00032396,10]
[374646660,1753397448208,-400.0,0.00032396,10]
[374646661,1753397448218,-400.0,0.00032396,10]
[374646662,1753397448227,-400.0,0.00032396,10]
[374646663,1753397448236,-400.0,0.00032396,10]
[374646664,1753397448245,-400.0,0.00032396,10]
[374646665,1753397448254,-400.0,0.00032396,10]
[374646666,1753397448263,-480.0,0.00032396,10]
[374646668,1753397448273,-400.0,0.00032396,10]
[374646670,1753397448282,-400.0,0.00032396,10]
[374646672,1753397448292,-400.0,0.00032396,10]
[374646674,1753397448302,-511.61,0.00032396,10]
[374646676,1753397448312,-400.0,0.00032396,10]
[374646678,1753397448321,-1027.25,0.00032396,10]
[374646680,1753397448331,-400.0,0.00032396,10]
[374646682,1753397448340,-400.0,0.00032396,10]
[374646684,1753397448350,-400.0,0.00032396,10]
[374646686,1753397448359,-400.0,0.00032396,10]
[374646688,1753397448370,-400.0,0.00032396,10]
[374646690,1753397448379,-400.0,0.00032396,10]
[374646692,1753397448388,-1100.26,0.00032396,10]
[374646694,1753397448398,-400.0,0.00032396,10]
[374646696,1753397448407,-400.0,0.00032396,10]
[374646698,1753397448416,-400.0,0.00032396,10]
[374646700,1753397448426,-400.0,0.00032396,10]
[374646702,1753397448435,-400.0,0.00032396,10]
[374646704,1753397448444,-400.0,0.00032396,10]
[374646706,1753397448454,-400.0,0.00032396,10]
[374646708,1753397448463,-400.0,0.00032396,10]
[374646710,1753397448473,-400.0,0.00032396,10]
[374646712,1753397448482,-1011.94,0.00032396,10]
[374646714,1753397448492,-400.0,0.00032396,10]
[374646716,1753397448501,-400.0,0.00032396,10]
[374646718,1753397448510,-400.0,0.00032396,10]
[374646720,1753397448520,-400.0,0.00032396,10]
[374646722,1753397448529,-400.0,0.00032396,10]
[374646724,1753397448539,-400.0,0.00032396,10]
[374646726,1753397448548,-400.0,0.00032396,10]
[374646728,1753397448558,-400.0,0.00032396,10]
[374646730,1753397448568,-400.0,0.00032396,10]
[374646732,1753397448579,-400.0,0.00032396,10]
[374646734,1753397448590,-400.0,0.00032396,10]
[374646736,1753397448600,-946.7,0.00032396,10]
[374646738,1753397448609,-400.0,0.00032396,10]
[374646740,1753397448618,-400.0,0.00032396,10]
[374646742,1753397448628,-400.0,0.00032396,10]
[374646744,1753397448637,-400.0,0.00032396,10]
[374646746,1753397448647,-400.0,0.00032396,10]
[374646748,1753397448656,-1545.12,0.00032396,10]
[374646750,1753397448665,-451.41223491,0.00032396,10]
[374646752,1753397448674,-400.0,0.00032396,10]
[374646754,1753397448683,-500.0,0.00032396,10]
[374646756,1753397448691,-400.0,0.00032396,10]
[374646758,1753397448701,-400.0,0.00032396,10]
[374646759,1753397448710,-400.0,0.00032396,10]
[374646760,1753397448719,-382.13526717,0.00032396,10]
[374646761,1753397448734,-17.86473283,0.00032396,10]
[374646762,1753397448743,-400.0,0.00032396,10]
[374646763,1753397448753,-400.0,0.00032396,10]
[374646764,1753397448762,-759.33,0.00032396,10]
[374646765,1753397448772,-400.0,0.00032396,10]
[374646766,1753397448781,-400.0,0.00032396,10]
[374646767,1753397448791,-400.0,0.00032396,10]
[374646768,1753397448800,-539.63,0.00032396,10]
[374646769,1753397448809,-400.0,0.00032396,10]
[374646770,1753397448819,-1451.33,0.00032396,10]
[374646771,1753397448829,-400.0,0.00032396,10]
[374646772,1753397448839,-400.0,0.00032396,10]
[374646773,1753397448848,-400.0,0.00032396,10]
[374646775,1753397448857,-400.0,0.00032396,10]
[374646776,1753397448866,-400.0,0.00032396,10]
[374646779,1753397448879,-400.0,0.00032396,10]
[374646781,1753397448890,-400.0,0.00032396,10]
[374646783,1753397448899,-400.0,0.00032396,10]
[374646785,1753397448908,-400.0,0.00032396,10]
[374646786,1753397448919,-400.0,0.00032396,10]
[374646789,1753397448928,-934.92,0.00032396,10]
[374646791,1753397448938,-400.0,0.00032396,10]
[374646793,1753397448947,-734.69,0.00032396,10]
[374646795,1753397448958,-400.0,0.00032396,10]
[374646797,1753397448968,-400.0,0.00032396,10]
[374646798,1753397448977,-400.0,0.00032396,10]
[374646801,1753397448987,-400.0,0.00032396,10]
[374646802,1753397448996,-400.0,0.00032396,10]
[374646805,1753397449006,-400.0,0.00032396,10]
[374646806,1753397449015,-400.0,0.00032396,10]
[374646808,1753397449025,-400.0,0.00032396,10]
[374646811,1753397449035,-400.0,0.00032396,10]
[374646813,1753397449044,-400.0,0.00032396,10]
[374646814,1753397449053,-400.0,0.00032396,10]
[374646817,1753397449063,-400.0,0.00032396,10]
[374646819,1753397449073,-1216.83,0.00032396,10]
[374646821,1753397449082,-556.11,0.00032396,10]
[374646823,1753397449092,-313.5463912,0.00032396,10]
[374646825,1753397449101,-400.0,0.00032396,10]
[374646827,1753397449111,-548.04703265,0.00032396,10]
[374646829,1753397449120,-203.07210642,0.00032396,10]
[374646830,1753397449130,-400.0,0.00032396,10]
[374646832,1753397449139,-400.0,0.00032396,10]
[374646834,1753397449149,-549.84,0.00032396,10]
[374646836,1753397449159,-400.0,0.00032396,10]
[374646838,1753397449168,-400.0,0.00032396,10]
[374646840,1753397449180,-400.0,0.00032396,10]
[374646843,1753397449190,-400.0,0.00032396,10]
[374646845,1753397449200,-400.0,0.00032396,10]
[374646847,1753397449209,-400.0,0.00032396,10]
[374646849,1753397449219,-1043.15,0.00032396,10]
[374646851,1753397449229,-400.0,0.00032396,10]
[374646853,1753397449239,-400.0,0.00032396,10]
[374646855,1753397449249,-400.0,0.00032396,10]
[374646857,1753397449259,-400.0,0.00032396,10]
[374646859,1753397449268,-400.0,0.00032396,10]
[374646861,1753397449278,-400.0,0.00032396,10]
[374646863,1753397449288,-400.0,0.00032396,10]
[374646865,1753397449297,-1177.45,0.00032396,10]
[374646867,1753397449307,-773.75,0.00032396,10]
[374646869,1753397449317,-400.0,0.00032396,10]
[374646871,1753397449327,-400.0,0.00032396,10]
[374646873,1753397449336,-400.0,0.00032396,10]
[374646875,1753397449345,-400.0,0.00032396,10]
[374646877,1753397449355,-405.35,0.00032396,10]
[374646879,1753397449364,-277.1626619,0.00032396,10]
[374646881,1753397449374,-400.0,0.00032396,10]
[374646883,1753397449383,-400.0,0.00032396,10]
[374646885,1753397449392,-400.0,0.00032396,10]
[374646887,1753397449402,-400.0,0.00032396,10]
[374646889,1753397449411,-1000.0,0.00032396,10]
[374646891,1753397449421,-400.0,0.00032396,10]
[374646893,1753397449431,-400.0,0.00032396,10]
[374646895,1753397449440,-400.0,0.00032396,10]
[374646897,1753397449451,-501.68942881,0.00032396,10]
[374646899,1753397449461,-400.0,0.00032396,10]
[374646901,1753397449471,-400.0,0.00032396,10]
[374646903,1753397449481,-13580.37,0.00032396,10]
[374646905,1753397449491,-513.11,0.00032396,10]
[374646907,1753397449501,-998.25,0.00032396,10]
[374646909,1753397449511,-400.0,0.00032396,10]
[374646911,1753397449520,-400.0,0.00032396,10]
[374646913,1753397449529,-400.0,0.00032396,10]
[374646915,1753397449539,-400.0,0.00032396,10]
[374646917,1753397449548,-400.0,0.00032396,10]
[374646919,1753397449558,-585.39,0.00032396,10]
[374646921,1753397449567,-400.0,0.00032396,10]
[374646923,1753397449578,-400.0,0.00032396,10]
[374646925,1753397449587,-400.0,0.00032396,10]
[374646927,1753397449597,-809.42,0.00032396,10]
[374646929,1753397449607,-400.0,0.00032396,10]
[374646931,1753397449616,-400.0,0.00032396,10]
[374646933,1753397449626,-400.0,0.00032396,10]
[374646935,1753397449635,-163.31795,0.00032396,10]
[374646937,1753397449645,-165.999605,0.00032396,10]
[374646939,1753397449655,-400.0,0.00032396,10]
[374646941,1753397449664,-3040.341314,0.00032396,10]
[374646943,1753397449674,-180.654122,0.00032396,10]
[374646945,1753397449684,-3159.135858,0.00032396,10]
[374646947,1753397449693,-694.59,0.00032396,10]
[374646949,1753397449703,-4352.52,0.00032396,10]
[374646951,1753397449712,-400.0,0.00032396,10]
[374646953,1753397449722,-250.0,0.00032396,10]
[374646955,1753397449731,-400.0,0.00032396,10]
[374646957,1753397449740,-1200.59,0.00032396,10]
[374646959,1753397449750,-463.88896514,0.00032396,10]
[374646961,1753397449759,-400.0,0.00032396,10]
[374646963,1753397449769,-2764.97,0.00032396,10]
[374646964,1753397449778,-400.0,0.00032396,10]
[374646965,1753397449787,-1329.383827,0.00032396,10]
[374646966,1753397449796,-400.0,0.00032396,10]
[374646967,1753397449806,-400.0,0.00032396,10]
[374646968,1753397449816,-1453.08,0.00032396,10]
[374646969,1753397449825,-400.0,0.00032396,10]
[374646970,1753397449835,-2061.55,0.00032396,10]
[374646971,1753397449844,-400.0,0.00032396,10]
[374646972,1753397449854,-400.0,0.00032396,10]
[374646973,1753397449864,-400.0,0.00032396,10]
[374646975,1753397449874,-577.06,0.00032396,10]
[374646977,1753397449888,-400.0,0.00032396,10]
[374646980,1753397449898,-4146.87,0.00032396,10]
[374646982,1753397449907,-400.0,0.00032396,10]
[374646983,1753397449916,-400.0,0.00032396,10]
[374646986,1753397449926,-400.0,0.00032396,10]
[374646988,1753397449936,-400.0,0.00032396,10]
[374646990,1753397449945,-400.0,0.00032396,10]
[374646992,1753397449957,-400.0,0.00032396,10]
[374646993,1753397449967,-1476.25,0.00032396,10]
[374646996,1753397449977,-7948.90987249,0.00032396,10]
[374646999,1753397450004,-208.43012751,0.00032396,10]
[374647001,1753397450014,-4987.05,0.00032396,10]
[374647003,1753397450024,-400.0,0.00032396,10]
[374647005,1753397450033,-328.07187249,0.00032396,10]
[374647008,1753397450045,-71.92812751,0.00032396,10]
[374647010,1753397450055,-726.75,0.00032396,10]
[374647012,1753397450064,-400.0,0.00032396,10]
[374647013,1753397450073,-1748.35,0.00032396,10]
[374647014,1753397450083,-400.0,0.00032396,10]
[374647015,1753397450093,-6470.19996273,0.00032396,10]
[374647016,1753397450104,-62.45003727,0.00032396,10]
[374647017,1753397450114,-575.43,0.00032396,10]
[374647018,1753397450123,-1000.0,0.00032396,10]
[374647019,1753397450133,-400.0,0.00032396,10]
[374647020,1753397450142,-400.0,0.00032396,10]
[374647021,1753397450152,-5468.91,0.00032396,10]
[374647022,1753397450162,-400.0,0.00032396,10]
[374647023,1753397450172,-404.49522254,0.00032396,10]
[374647024,1753397450182,-400.0,0.00032396,10]
[374647025,1753397450191,-673.99,0.00032396,10]
[374647048,1753397450609,-400.0,0.00032396,10]
[374647050,1753397450630,-400.0,0.00032396,10]
[374647052,1753397450640,-870.63,0.00032396,10]
[374647054,1753397450650,-16472.3,0.00032396,10]
[374647056,1753397450659,-400.0,0.00032396,10]
[374647058,1753397450669,-400.0,0.00032396,10]
[374647060,1753397450678,-899.71,0.00032396,10]
[374647062,1753397450688,-400.0,0.00032396,10]
[374647064,1753397450697,-962.13,0.00032396,10]
[374647066,1753397450707,-552.12,0.00032396,10]
[374647068,1753397450716,-712.95,0.00032396,10]
[374647070,1753397450726,-484.5509469,0.00032396,10]
[374647072,1753397450735,-400.0,0.00032396,10]
[374647074,1753397450745,-151.92958,0.00032396,10]
[374647076,1753397450754,-151.92958,0.00032396,10]
[374647078,1753397450764,-1013.17137764,0.00032396,10]
[374647080,1753397450776,-3280.82580149,0.00032396,10]
[374647087,1753397450832,-1141.6,0.00032396,10]
[374647171,1753397546173,399.745,0.0002002,2]
[374647175,1753397891242,161.0,0.00018247,3]
[374647177,1753397913649,158.24,0.00013699,2]
[374647191,1753398618919,4999.28795,0.00025,120]
[374647204,1753398631922,-275.02,0.00025598,2]
[374647205,1753398631931,-152.90221897,0.00027329,2]
[374647208,1753398631942,-122.11778103,0.00027329,2]
[374647210,1753398631952,-261.0,0.00028158,120]
[374647211,1753398631962,-600.0,0.0002899,2]
[374647212,1753398631972,-275.02,0.00029059,2]
[374647213,1753398631982,-150.0,0.00029145,7]
[374647214,1753398631992,-510.0,0.00029651,2]
[374647215,1753398632002,-150.0,0.0003029,2]
[374647216,1753398632012,-275.02,0.00030789,2]
[374647217,1753398632021,-165.76,0.0003081,2]
[374647218,1753398632031,-180.0,0.00030907,7]
[374647219,1753398632040,-486.0,0.00031075,3]
[374647220,1753398632049,-299.55,0.00031076,2]
[374647221,1753398632058,-1424.68,0.00031076,2]
[374647222,1753398632069,-3150.07,0.00031076,2]
[374647223,1753398632088,-153.71,0.00031079,2]
[374647224,1753398632098,-219.75,0.00031099,2]
[374647225,1753398632107,-250.0,0.00031182,2]
[374647226,1753398632117,-1050.50514052,0.00031183,2]
[374647227,1753398632126,-944.30504151,0.00031183,2]
[374647228,1753398632136,-457.0,0.00031261,2]
[374647229,1753398632145,-9216.856,0.00031277,2]
[374647230,1753398632155,-231.28369723,0.00031277,2]
[374647231,1753398632164,-240.41,0.0003128,30]
[374647232,1753398632174,-168.01,0.00031294,2]
[374647233,1753398632183,-1000.0,0.00031295,2]
[374647234,1753398632192,-150.0,0.00031354,2]
[374647235,1753398632202,-165.16,0.0003138,2]
[374647236,1753398632211,-157.57,0.00031415,2]
[374647237,1753398632221,-500.0,0.000315,30]
[374647238,1753398632233,-1758.0,0.000316,2]
[374647239,1753398632243,-1000.0,0.000316,2]
[374647240,1753398632252,-500.0,0.000317,30]
[374647241,1753398632262,-157.57,0.00031729,2]
[374647242,1753398632271,-500.0,0.000318,45]
[374647243,1753398632280,-8199.64497438,0.00031825,2]
[374647268,1753398632595,-848.6229296,0.00031825,2]
[374647277,1753398632678,-319.81069092,0.00031825,2]
[374647279,1753398632690,-189.8010771,0.00031825,2]
[374647281,1753398632700,-556.131784,0.0003184,30]
[374647283,1753398632709,-500.0,0.000319,45]
[374647285,1753398632719,-237.1208607,0.000319,25]
[374647287,1753398632728,-438.0,0.00032,45]
[374647289,1753398632738,-150.0,0.00032,2]
[374647291,1753398632748,-500.0,0.00032014,7]
[374647293,1753398632756,-500.0,0.00032014,7]
[374647295,1753398632766,-150.0,0.00032057,2]
[374647297,1753398632775,-528.374,0.00032057,31]
[374647299,1753398632784,-1666.6534084,0.000321,2]
[374647301,1753398632798,-449.0,0.000321,3]
[374647303,1753398632807,-1000.0,0.00032168,2]
[374647305,1753398632817,-510.0,0.0003218,6]
[374647307,1753398632828,-150.0,0.0003219,2]
[374647309,1753398632837,-2500.0,0.00032197,2]
[374647311,1753398632847,-476.0,0.00032231,7]
[374647313,1753398632856,-219.75,0.00032265,2]
[374647314,1753398632866,-540.2887,0.00032274,3]
[374647315,1753398632875,-5000.0,0.00032284,2]
[374647316,1753398632884,-2255.97726446,0.00032285,2]
[374647317,1753398632895,-10000.0,0.00032295,2]
[374647318,1753398632904,-1000.0,0.00032296,2]
[374647319,1753398632914,-743.37,0.00032296,10]
[374647320,1753398632924,-1688.57,0.00032296,10]
[374647321,1753398632933,-551.62,0.00032296,10]
[374647322,1753398632943,-2017.04,0.00032296,10]
[374647323,1753398632953,-2825.71,0.00032296,10]
[374647324,1753398632962,-487.82,0.00032296,10]
[374647325,1753398632971,-4008.18,0.00032296,10]
[374647326,1753398632981,-1815.85,0.00032296,10]
[374647327,1753398632990,-400.0,0.00032296,10]
[374647328,1753398632999,-2690.74607518,0.00032296,10]
[374647329,1753398633012,-650.90392482,0.00032296,10]
[374647331,1753398633022,-2511.5,0.00032296,10]
[374647333,1753398633031,-736.17,0.00032296,10]
[374647335,1753398633042,-400.0,0.00032296,10]
[374647337,1753398633051,-400.0,0.00032296,10]
[374647339,1753398633061,-923.43,0.00032296,10]
[374647341,1753398633072,-400.0,0.00032296,10]
[374647343,1753398633082,-1480.09,0.00032296,10]
[374647345,1753398633091,-742.05,0.00032296,10]
[374647347,1753398633101,-551.35,0.00032296,10]
[374647349,1753398633111,-495.84,0.00032296,10]
[374647351,1753398633121,-2328.46,0.00032296,10]
[374647353,1753398633131,-435.57,0.00032297,10]
[374647355,1753398633141,-400.0,0.00032297,10]
[374647358,1753398633152,-400.0,0.00032297,10]
[374647360,1753398633163,-400.0,0.00032297,7]
[374647362,1753398633176,-400.0,0.00032297,10]
[374647365,1753398633189,-400.0,0.00032297,10]
[374647367,1753398633201,-400.0,0.00032297,10]
[374647369,1753398633212,-400.0,0.00032297,10]
[374647370,1753398633223,-812.57,0.00032297,10]
[374647371,1753398633238,-400.0,0.00032297,10]
[374647372,1753398633250,-400.0,0.00032297,10]
[374647373,1753398633262,-400.0,0.00032297,10]
[374647374,1753398633275,-400.0,0.00032297,10]
[374647375,1753398633287,-400.0,0.00032297,10]
[374647376,1753398633299,-536.04,0.00032297,10]
[374647377,1753398633315,-1518.85,0.00032297,10]
[374647378,1753398633328,-1867.2,0.00032297,10]
[374647379,1753398633339,-2980.84,0.00032297,10]
[374647380,1753398633350,-1779.85,0.00032297,10]
[374647381,1753398633362,-1357.38,0.00032297,10]
[374647382,1753398633373,-1074.67,0.00032297,90]
[374647383,1753398633383,-1550.29,0.00032297,10]
[374647384,1753398633395,-400.0,0.00032297,10]
[374647385,1753398633407,-2103.11,0.00032297,10]
[374647386,1753398633420,-400.0,0.00032297,10]
[374647387,1753398633432,-2184.74,0.00032297,10]
[374647388,1753398633444,-789.8870123,0.00032297,10]
[374647389,1753398637983,-520.3729877,0.00032297,10]
[374647390,1753398637993,-956.0470123,0.00032297,10]
[374647391,1753398638005,-874.1429877,0.00032297,10]
[374647392,1753398638014,-400.0,0.00032297,10]
[374647393,1753398638024,-1772.11,0.00032297,10]
[374647394,1753398638033,-400.0,0.00032297,10]
[374647395,1753398638045,-400.0,0.00032297,10]
[374647396,1753398638055,-400.0,0.00032297,10]
[374647397,1753398638064,-1884.24,0.00032297,10]
[374647398,1753398638074,-1588.6,0.00032297,10]
[374647399,1753398638083,-1598.39,0.00032297,10]
[374647400,1753398638093,-2069.4,0.00032297,10]
[374647401,1753398638102,-400.0,0.00032297,10]
[374647402,1753398638112,-2480.84,0.00032297,10]
[374647403,1753398638121,-400.0,0.00032297,10]
[374647404,1753398638131,-1272.06,0.00032297,10]
[374647405,1753398638140,-2784.18,0.00032297,10]
[374647406,1753398638149,-400.0,0.00032297,10]
[374647407,1753398638159,-4520.74,0.00032297,2]
[374647408,1753398638169,-847.46,0.00032297,10]
[374647409,1753398638178,-118.1147983,0.00032297,10]
[374647410,1753398638190,-281.8852017,0.00032297,10]
[374647411,1753398638199,-3695.24,0.00032297,10]
[374647412,1753398638209,-400.0,0.00032297,10]
[374647413,1753398638218,-400.0,0.00032297,10]
[374647414,1753398638228,-1078.97,0.00032297,10]
[374647415,1753398638239,-400.0,0.00032297,10]
[374647416,1753398638249,-2526.2,0.00032297,10]
[374647417,1753398638258,-1461.0,0.00032297,10]
[374647418,1753398638268,-3091.51,0.00032297,10]
[374647419,1753398638277,-2019.45,0.00032297,10]
[374647420,1753398638289,-2444.89,0.00032297,10]
[374647421,1753398638298,-822.8414383,0.00032297,10]
[374647422,1753398638310,-282.58863266,0.00032297,10]
[374647423,1753398638325,-647.31992904,0.00032297,10]
[374647424,1753398638334,-338.51090984,0.00032297,10]
[374647427,1753398638357,-559.96909016,0.00032297,10]
[374647429,1753398638366,-426.74783861,0.00032297,10]
[374647431,1753398638376,-1179.65915789,0.00032297,10]
[374647434,1753398638388,-1660.06084211,0.00032297,10]
[374647436,1753398638397,-529.74552496,0.00032297,10]
[374647437,1753398638408,-1320.80152978,0.00032297,10]
[374647438,1753398638432,-344.29847022,0.00032297,10]
[374647439,1753398638441,-60.87665281,0.00032297,10]
[374647440,1753398638454,-1025.5020456,0.00032297,10]
[374647442,1753398638470,-2045.33506466,0.00032297,10]
[374647443,1753398638482,-855.81623693,0.00032297,10]
[374647445,1753398638493,-795.48890643,0.00032297,10]
[374647447,1753398638504,-531.6037714,0.00032297,10]
[374647449,1753398638516,-639.77598543,0.00032297,10]
[374647460,1753398640003,-821.29568227,0.00026,2]
[374647461,1753398640016,-510.70431773,0.00026,2]
[374647462,1753398640025,-29.33133674,0.00032297,10]
[374647463,1753398640035,-400.0,0.00032297,10]
[374647464,1753398640044,-682.59,0.00032297,10]
[374647465,1753398640054,-673.54,0.00032297,10]
[374647466,1753398640063,-5139.16,0.00032297,10]
[374647467,1753398640074,-2641.91,0.00032297,10]
[374647468,1753398640083,-2185.06,0.00032297,10]
[374647469,1753398640093,-1281.51,0.00032297,10]
[374647470,1753398640103,-2986.53,0.00032297,10]
[374647471,1753398640113,-1596.89,0.00032297,10]
[374647472,1753398640122,-3710.34,0.00032297,10]
[374647473,1753398640131,-1405.43,0.00032297,10]
[374647474,1753398640141,-1556.12,0.00032297,10]
[374647475,1753398640151,-4000.88434553,0.00032297,10]
[374647476,1753398640163,-563.20749968,0.00032297,10]
[374647477,1753398640203,-1691.77589194,0.00032297,10]
[374647478,1753398640214,-1030.44,0.00032297,10]
[374647479,1753398640226,-1747.6967757,0.00032297,10]
[374647480,1753398640403,-3148.43,0.00032296,10]
[374647481,1753398640413,-1780.69548715,0.00032297,10]
[374647482,1753398640423,-434.65,0.00032297,10]
[374647483,1753398640433,-7695.42164033,0.00032297,10]
[374647484,1753398640445,-2250.61835967,0.00032297,10]
[374647485,1753398640455,-506.53123808,0.00032297,10]
[374647486,1753398640467,-882.46602351,0.00032297,10]
[374647487,1753398640479,-494.99999995,0.00032297,10]
[374647627,1753398642917,-430.12,0.00032296,10]
[374647628,1753398642928,-55.185,0.00032296,10]
[374647629,1753398643030,-127.90731739,0.00032296,10]
[374647630,1753398643039,-1908.01915327,0.00032296,10]
[374647633,1753398645924,-115.25084673,0.00032296,10]
[374647634,1753398645935,-1629.56915327,0.00032297,10]
[374647635,1753398645950,-341.20358519,0.00032297,10]
[374647636,1753398645961,-555.93410586,0.00032297,10]
[374647637,1753398645974,-659.55599547,0.00032297,10]
[374647638,1753398645987,-376.47989867,0.00032297,10]
[374647639,1753398645997,-157.92010113,0.00032297,10]
[374647640,1753398646024,-1434.46989887,0.00032297,10]
[374647641,1753398646034,-2152.27,0.00032297,10]
[374647642,1753398646043,-3554.99,0.00032297,10]
[374647643,1753398646053,-925.16,0.00032297,10]
[374647644,1753398646062,-941.00712963,0.00032297,10]
[374647645,1753398646080,-1424.64287037,0.00032297,10]
[374647646,1753398646090,-11800.75,0.00032297,10]
[374647647,1753398646100,-2718.21,0.00032297,10]
[374647648,1753398646110,-2593.67,0.00032297,10]
[374647649,1753398646119,-2648.74,0.00032297,10]
[374647650,1753398646129,-2159.01,0.00032297,10]
[374647651,1753398646139,-2981.1,0.00032297,10]
[374647652,1753398646148,-2501.28,0.00032297,10]
[374647653,1753398646158,-10189.8351313,0.00032297,10]
[374647654,1753398646290,-1498.7248687,0.00032297,10]
[374647655,1753398646299,-2030.53784089,0.00032297,10]
[374647656,1753398646311,-2606.63215911,0.00032297,10]
[374647657,1753398646323,-5211.18,0.00032297,10]
[374647658,1753398646333,-1700.58,0.00032297,10]
[374647659,1753398646342,-879.92,0.00032297,10]
[374647660,1753398646352,-1619.74,0.00032297,10]
[374647661,1753398646361,-1784.94,0.00032297,10]
[374647662,1753398646372,-2176.43,0.00032297,10]
[374647663,1753398646381,-400.0,0.00032297,10]
[374647664,1753398646391,-400.0,0.00032297,10]
[374647665,1753398646401,-954.57,0.00032297,10]
[374647666,1753398646411,-2522.57,0.00032297,10]
[374647667,1753398646421,-543.2,0.00032297,10]
[374647668,1753398646431,-4110.66,0.00032297,10]
[374647669,1753398646441,-2367.66,0.00032297,10]
[374647670,1753398646451,-1609.7,0.00032297,10]
[374647671,1753398646460,-2151.56,0.00032297,10]
[374647672,1753398646469,-6099.36,0.00032297,10]
[374647673,1753398646479,-856.55352909,0.00032297,10]
[374647674,1753398646528,-817.61647091,0.00032297,10]
[374647675,1753398646538,-9740.18,0.00032297,10]
[374647676,1753398646547,-1683.44,0.00032297,10]
[374647677,1753398646557,-9935.53,0.00032297,10]
[374647678,1753398646568,-1724.55,0.00032297,10]
[374647679,1753398646579,-1247.5,0.00032297,10]